Cogmind - Beta 17 @@@ ROGUE MODE // 2026.07.01 @ 20:58:42 Player: Vikcy6666 Result: Destroyed by S-10 Pest with Light Assault Rifle Performance ------------- Evolutions (1) 500 Regions Visited (6) 1200 Robots Destroyed (49) 245 Value Destroyed (807) 807 Prototype IDs (4) 80 Alien Tech Used (0) 0 Bonus (-26) -26 TOTAL SCORE: 2806 Bonus ------- Friendly Fire -26 Cogmind --------- Core Integrity 0/400 Matter 146/300 Energy 114/125 System Corruption 4% Temperature Cool (0) Movement Flying (120) Ox1 Location -8/Mines Parts ------- > --- POWER (1) -------- Light Ion Engine > --- PROPULSION (4) --- Flight Unit > --- UTILITY (2) ------ Weight Redist. System Core Shielding > --- WEAPON (2) ------- Advanced Beam Cannon > --- INVENTORY (5) ---- Flight Unit Peak State ------------ > --- POWER ------------ Light Ion Engine > --- PROPULSION ------- Flight Unit Flight Unit Flight Unit Flight Unit > --- UTILITY ---------- Weight Redist. System Thief Drone Bay > --- WEAPON ----------- Advanced Beam Cannon Shotgun > --- INVENTORY -------- Flight Unit Heat Sink Beam Rifle Battle Cannon [Rating: 19] Favorites ----------- Power Light Ion Engine Engine Light Ion Engine Propulsion Flight Unit Treads Light Treads Leg Aluminum Leg Wheel Wheel Hover Unit Hover Unit Flight Unit Flight Unit Utility Targeting Computer Device Weight Redist. System Storage Small Storage Unit Processor Targeting Computer Protection Light Armor Plating Weapon Light Cannon Energy Gun EM Pulse Gun Energy Cannon Advanced Beam Cannon Ballistic Gun Assault Rifle Ballistic Cannon Light Cannon Launcher Grenade Launcher Build | -11 -10 -10 -9 -9 -9 -8 ------- Run | Yrd Mat Min Mat Min Exi Min Slots Evolved 2 | . . . 2 . . . Power . | . . . . . . . Propulsion 2 | . . . 2 . . . Utility . | . . . . . . . Weapon . | . . . . . . . Parts Attached 54 | 6 9 . 21 6 . 12 Power 8 | 1 1 . 3 1 . 2 Engine 8 | 1 1 . 3 1 . 2 Core . | . . . . . . . Reactor . | . . . . . . . Propulsion 24 | 2 2 . 11 4 . 5 Treads 5 | . 2 . 3 . . . Leg 3 | 2 . . 1 . . . Wheel 1 | . . . 1 . . . Hover 2 | . . . 2 . . . Flight 13 | . . . 4 4 . 5 Utility 8 | 1 2 . 2 1 . 2 Device 3 | . . . 1 1 . 1 Storage 1 | 1 . . . . . . Processor 2 | . 2 . . . . . Hackware . | . . . . . . . Protection 2 | . . . 1 . . 1 Artifact . | . . . . . . . Weapon 14 | 2 4 . 5 . . 3 Energy Gun 2 | . 1 . 1 . . . Energy Cannon 1 | . . . 1 . . . Ballistic Gun 5 | 2 1 . 2 . . . Ballistic Cannon 2 | . 1 . . . . 1 Launcher 4 | . 1 . 1 . . 2 Special Weapon . | . . . . . . . Impact Weapon . | . . . . . . . Slashing Weapon . | . . . . . . . Piercing Weapon . | . . . . . . . Special Melee Weapon . | . . . . . . . Unidentified Prototypes 2 | . . . 1 1 . . Parts Lost 14 | . . . 3 . . 11 Power 3 | . . . 1 . . 2 Propulsion 4 | . . . . . . 4 Utility 1 | . . . . . . 1 Weapon 6 | . . . 2 . . 4 Highest Loss Streak 9 | . . . 2 . . 9 To Critical Strikes . | . . . . . . . Average Backups 5 | 3 6 5 4 4 5 4 Power . | . 1 1 . . . . Propulsion . | 2 1 . . . 1 . Utility . | . . . . 1 1 . Weapon 3 | . 3 4 3 2 3 2 Tool/Special . | . . . . . . . Unused Backups 9 | . 4 . 1 3 . 1 Power 1 | . . . 1 . . . Propulsion 4 | . 3 . . . . 1 Utility . | . . . . . . . Weapon 4 | . 1 . . 3 . . Tool/Special . | . . . . . . . Average Slot Usage (%) 94 | . 97 100 86 100 100 88 Engine 12 | . 14 14 10 11 11 9 Treads 14 | . 15 28 15 1 . . Leg 3 | . 12 . . . . . Hover 1 | . . . 4 . . . Flight 14 | . . . 13 42 44 37 Device 4 | . . . . 16 22 20 Storage 1 | . 6 . . . . . Processor 15 | . 20 28 16 5 . . Protection 1 | . . . 5 . . . Energy Gun 1 | . 4 . 3 . . . Energy Cannon 2 | . . . . 11 11 5 Ballistic Gun 9 | . 10 14 5 11 11 8 Ballistic Cannon 7 | . 8 14 5 . . 3 Launcher 2 | . 4 . 4 . . 3 Peak Build Rating 19 | 6 8 8 15 19 19 13 Average Rating 9 | 3 7 8 9 16 19 11 On Entrance 10 | . 6 8 8 15 19 19 Avg Prop Armor Cover (%) 4 | . . . 7 2 2 4 Naked Turns . | . . . . . . . Heaviest Build 16 | 11 14 8 16 14 14 11 Greatest Support 40 | 20 40 40 40 22 18 18 Greatest Overweight (x) 2 | . . . 2 . . 2 Average Overweight (x) . | . . . . . . . Largest Inventory Capacity 8 | 8 8 5 5 5 5 5 Average Capacity 5 | 7 6 5 5 5 5 5 Most Carried 8 | 8 8 5 5 5 5 5 Average Carried 5 | 4 6 5 4 4 5 4 Final Capacity 8 | 8 5 5 5 5 5 5 Final Carried 6 | 6 5 5 5 5 5 1 Class Distribution -------------------- 63% | Mutant 36% | Scavenger-Mutant Dominant Class ---------------- Mutant | -10/Materials Mutant | -10/Mines Scavenger-Mutant | -9/Materials Scavenger-Mutant | -9/Mines Scavenger-Mutant | -9/Exiles Scavenger-Mutant | -8/Mines Resources | -11 -10 -10 -9 -9 -9 -8 ----------- Run | Yrd Mat Min Mat Min Exi Min Matter Collected 1232 | 251 141 . 599 109 . 132 Remotely . | . . . . . . . Salvage Created 1155 | . 99 . 852 57 . 147 Parts 90 | . 14 . 50 9 . 17 Haulers Intercepted 2 | . . . 2 . . . Recyclers Shooed 5 | . 1 . 3 . . 1 Parts Field Recycled . | . . . . . . . Retrieved Matter . | . . . . . . . Parts Self-Destructed . | . . . . . . . Prevented . | . . . . . . . Parts Restored . | . . . . . . . Kills | -11 -10 -10 -9 -9 -9 -8 ------- Run | Yrd Mat Min Mat Min Exi Min Combat Hostiles Destroyed 39 | . 8 . 15 5 . 11 Guns 19 | . 5 . 5 5 . 4 Cannons 9 | . 1 . 5 . . 3 AOE 11 | . 2 . 5 . . 4 Classes Destroyed 8 | . 2 . 5 . . 1 Builder 2 | . . . 2 . . . Hauler 2 | . . . 2 . . . Recycler 4 | . . . 4 . . . Watcher 2 | . 1 . 1 . . . Swarmer 28 | . 8 . 7 5 . 8 Grunt 6 | . . . 4 . . 2 Duelist 1 | . . . . . . 1 Sentry 4 | . . . 4 . . . Best Kill Streak 8 | . 3 . 8 6 . 5 Combat Bots Only 5 | . 3 . 5 4 . 5 Max Kills in Single Turn 3 | . 2 . 2 2 . 3 Gunslinging 1 | . . . 1 . . . Exploded 3 | . 2 . 2 . . 3 Melee . | . . . . . . . Uniques/NPCs Destroyed . | . . . . . . . Combat | -11 -10 -10 -9 -9 -9 -8 -------- Run | Yrd Mat Min Mat Min Exi Min Hostile Shots Fired 260 | . 35 . 84 18 . 123 Missed 88 | . 11 . 25 9 . 43 Hits 172 | . 24 . 59 9 . 80 Melee 7 | . . . . . . 7 Projectile 165 | . 24 . 59 9 . 73 Critical Strikes 1 | . . . . . . 1 Damage Taken 1973 | . 203 . 737 71 . 962 Core 434 | . 30 . 103 15 . 286 Absorbed by Shields . | . . . . . . . Redirected to Shielding 2 | . . . . . . 2 Core Remaining (%) 94 | 100 . 88 . . . . Volleys Fired 101 | . 17 . 47 10 . 27 Largest 2 | . 2 . 2 2 . 2 Hottest 91 | . 70 . 91 91 . 91 Shots Fired 184 | . 33 . 84 21 . 46 Gun 86 | . 20 . 36 11 . 19 Cannon 77 | . 11 . 36 10 . 20 Launcher 21 | . 2 . 12 . . 7 Special . | . . . . . . . Kinetic 122 | . 27 . 56 11 . 28 Thermal 33 | . . . 12 10 . 11 Explosive 19 | . 2 . 12 . . 5 Electromagnetic 10 | . 4 . 4 . . 2 Robot Hit Streak 7 | . 6 . 7 4 . 7 Robot Miss Streak 6 | . 2 . 6 6 . 4 Penetration Max . | . . . . . . . Secondary Targets 3 | . 2 . 1 . . . Max Gunslinging Chain 1 | . 1 . 1 . . . Shots Hit Robots 106 | . 20 . 49 12 . 25 Core Hits 70 | . 11 . 34 6 . 19 Critical Kills . | . . . . . . . Critical Parts Destroyed . | . . . . . . . Critical Strikes 1 | . . . 1 . . . Burn 1 | . . . 1 . . . Melee Attacks . | . . . . . . . Impact . | . . . . . . . Slashing . | . . . . . . . Piercing . | . . . . . . . Sneak Attacks . | . . . . . . . Combat Hostiles . | . . . . . . . Follow-up Attacks . | . . . . . . . Damage Inflicted 2593 | . 451 . 1103 247 . 792 Guns 767 | . 158 . 317 124 . 168 Cannons 905 | . 125 . 440 123 . 217 Explosions 921 | . 168 . 346 . . 407 Melee . | . . . . . . . Ramming . | . . . . . . . Kinetic 1205 | . 238 . 581 124 . 262 Thermal 377 | . . . 131 123 . 123 Explosive 921 | . 168 . 346 . . 407 Electromagnetic 90 | . 45 . 45 . . . Impact . | . . . . . . . Slashing . | . . . . . . . Piercing . | . . . . . . . Highest Corruption 4 | . 1 1 4 4 4 4 Average Corruption 2 | . 1 1 3 4 4 4 Corruption Purged . | . . . . . . . Corruption Blocked . | . . . . . . . Effects 16 | . 1 2 3 4 1 5 Message Errors 5 | . . 1 . 1 . 3 Matter Fused 2 | . . . . 1 . 1 Heat Flow Errors 3 | . . . 1 1 1 . Energy Discharges 1 | . 1 . . . . . Data Loss (minor) 3 | . . . 2 . . 1 Misfires 1 | . . . . 1 . . Alerts 1 | . . 1 . . . . Overload Shots . | . . . . . . . Overflow Damage 74 | . 10 . 63 1 . . Projectiles 3 | . . . 2 1 . . Explosions 71 | . 10 . 61 . . . Melee . | . . . . . . . Knockbacks 5 | . 3 . . . . 2 Impact . | . . . . . . . Kinetic 5 | . 3 . . . . 2 Secondary . | . . . . . . . Self-Inflicted Damage 117 | . . . 75 . . 42 Shots 7 | . . . 4 . . 3 Rammed . | . . . . . . . Targets Rammed . | . . . . . . . Kicked . | . . . . . . . Crushed . | . . . . . . . Highest Temperature 213 | . 18 . 150 213 91 48 Average Temperature 62 | . 8 . 52 90 63 22 Received Heat Transfer 231 | . . . 132 . . 99 Siege Activations . | . . . . . . . Martial Activations . | . . . . . . . Shielding Activations . | . . . . . . . Robots Disrupted . | . . . . . . . Combat Hostiles . | . . . . . . . Robots Corrupted . | . . . . . . . Combat Hostiles . | . . . . . . . Parts Fried . | . . . . . . . Impact Corruptions . | . . . . . . . Robots Melted . | . . . . . . . Combat Hostiles . | . . . . . . . Parts Melted . | . . . . . . . Heat Transferred 777 | . . . 333 222 . 222 Parts Sabotaged . | . . . . . . . Parts Stolen . | . . . . . . . Parts Stripped . | . . . . . . . Power Chain Reactions 1 | . . . . . . 1 Alert | -11 -10 -10 -9 -9 -9 -8 ------- Run | Yrd Mat Min Mat Min Exi Min Maximum Alert Level 1 | . . . 1 . . . Low Security (%) 88 | 100 100 100 60 100 . 100 Level 1 11 | . . . 39 . . . Level 2 . | . . . . . . . Level 3 . | . . . . . . . Level 4 . | . . . . . . . Level 5 . | . . . . . . . High Security . | . . . . . . . Max Security . | . . . . . . . Peak Influence 264 | . 94 28 264 186 . 142 Initial 101 | . . 28 . 101 . . Average 81 | . 49 3 146 159 . 67 Influence Increases 1137 | . 225 . 485 135 . 292 Destroy 0b10 Robot/C 780 | . 160 . 300 100 . 220 Destroy 0b10 Robot/NC 50 | . 5 . 45 . . . Destroy Leader 168 | . 32 . 76 20 . 40 Successful Hack 15 | . 15 . . . . . Destroy Structure 94 | . 13 . 64 . . 17 Lose Combat Pursuer 30 | . . . . 15 . 15 Influence Decreases 1035 | . 150 75 224 240 156 190 Entered New Map 363 | . . 47 . 160 156 . Time Decay 532 | . 150 28 194 80 . 80 Lost Part 140 | . . . 30 . . 110 Squads Dispatched 1 | . . . 1 . . . Investigation . | . . . . . . . Extermination . | . . . . . . . Reinforcement 1 | . . . 1 . . . Assault . | . . . . . . . Garrison . | . . . . . . . Intercept . | . . . . . . . Searches Triggered . | . . . . . . . Construction Impeded 1 | . . . 1 . . . Haulers Reinforced . | . . . . . . . Active Scanning Responses . | . . . . . . . Cargo Convoy Interrupts . | . . . . . . . Stealth | -11 -10 -10 -9 -9 -9 -8 --------- Run | Yrd Mat Min Mat Min Exi Min Distress Signals 2 | . . . 2 . . . Communications Jammed . | . . . . . . . Distress Signals . | . . . . . . . Times Spotted 49 | . 11 . 18 3 . 17 Peak Tracking Total 10 | . 3 . 4 3 . 10 Tactical Retreats 2 | . . . . 1 . 1 Traps | -11 -10 -10 -9 -9 -9 -8 ------- Run | Yrd Mat Min Mat Min Exi Min Traps Triggered 3 | . 1 . 2 . . . Indirectly . | . . . . . . . Trap Hack Attempts . | . . . . . . . Triggered . | . . . . . . . Disarmed 6 | . 6 . . . . . Reprogrammed . | . . . . . . . Reused . | . . . . . . . Traps Extracted . | . . . . . . . Installed . | . . . . . . . Triggered . | . . . . . . . Machines | -11 -10 -10 -9 -9 -9 -8 ---------- Run | Yrd Mat Min Mat Min Exi Min Machines Disabled 1 | . 1 . . . . . Max in Single Turn 1 | . 1 . . . . . Machines Repaired . | . . . . . . . Machines Dismantled . | . . . . . . . Machines Sabotaged . | . . . . . . . Overloaded Fab Kills . | . . . . . . . Hacking | -11 -10 -10 -9 -9 -9 -8 --------- Run | Yrd Mat Min Mat Min Exi Min Machines Accessed 4 | . 3 . . 1 . . Terminals 2 | . 2 . . . . . Fabricators . | . . . . . . . Repair Stations . | . . . . . . . Recycling Units 1 | . 1 . . . . . Scanalyzers . | . . . . . . . Garrison Access . | . . . . . . . Total Hacks 14 | . 13 . . 1 . . Successful 11 | . 10 . . 1 . . Failed 3 | . 3 . . . . . Catastrophic . | . . . . . . . Database Lockouts . | . . . . . . . Manual . | . . . . . . . Terminals 9 | . 9 . . . . . Fabricators . | . . . . . . . Repair Stations . | . . . . . . . Recycling Units 4 | . 4 . . . . . Scanalyzers . | . . . . . . . Garrison Access . | . . . . . . . Terminal Hacks 7 | . 6 . . 1 . . Prototype ID Bank 1 | . 1 . . . . . Open Door 1 | . . . . 1 . . Emergency Access Points 1 | . 1 . . . . . Disarm Traps 1 | . 1 . . . . . Dispatch Records 1 | . 1 . . . . . Maintenance Status 1 | . 1 . . . . . Registered Components 1 | . 1 . . . . . Fabricator Hacks . | . . . . . . . Repair Station Hacks . | . . . . . . . Recycling Unit Hacks 4 | . 4 . . . . . Process 1 | . 1 . . . . . Report Inventory 1 | . 1 . . . . . Retrieve Matter 2 | . 2 . . . . . Scanalyzer . | . . . . . . . Garrison Access Hacks . | . . . . . . . Unauthorized Hacks . | . . . . . . . Terminals . | . . . . . . . Fabricators . | . . . . . . . Repair Stations . | . . . . . . . Recycling Units . | . . . . . . . Scanalyzers . | . . . . . . . Garrison Access . | . . . . . . . Data Cores Recovered . | . . . . . . . Used . | . . . . . . . Hacking Detections 3 | . 3 . . . . . Full Trace Events . | . . . . . . . Feedback Events . | . . . . . . . Feedback Blocked . | . . . . . . . Robot Schematics Acquired . | . . . . . . . Robots Built . | . . . . . . . Authchips . | . . . . . . . Time . | . . . . . . . Total Robot Build Rating . | . . . . . . . Part Schematics Acquired . | . . . . . . . Parts Built . | . . . . . . . Authchips . | . . . . . . . Time . | . . . . . . . Total Part Build Rating . | . . . . . . . Part Studies Acquired . | . . . . . . . Parts Repaired . | . . . . . . . Time . | . . . . . . . Parts Recycled . | . . . . . . . Recycled Matter 143 | . 143 . . . . . Retrieved Matter 143 | . 143 . . . . . Retrieved Components . | . . . . . . . Parts Scanalyzed . | . . . . . . . Part Schematics Acquired . | . . . . . . . Parts Damaged . | . . . . . . . Bothacking | -11 -10 -10 -9 -9 -9 -8 ------------ Run | Yrd Mat Min Mat Min Exi Min Used RIF Installer . | . . . . . . . Robots Hacked . | . . . . . . . Non-combat . | . . . . . . . Combat . | . . . . . . . Robot Hacks Applied . | . . . . . . . Relay Couplers Released . | . . . . . . . Fabnet Peak Effective % . | . . . . . . . Robots Rewired . | . . . . . . . Allies Hacked . | . . . . . . . Hacks Repelled . | . . . . . . . Allies | -11 -10 -10 -9 -9 -9 -8 -------- Run | Yrd Mat Min Mat Min Exi Min Total Allies . | . . . . . . . Largest Group . | . . . . . . . Highest-Rated Group . | . . . . . . . Highest-Rated Ally . | . . . . . . . Total Orders 4 | . . . . 4 . . ROAM 1 | . . . . 1 . . EXPLORE 2 | . . . . 2 . . RETURN 1 | . . . . 1 . . Ally Attacks 1 | . . . . 1 . . Total Damage . | . . . . . . . Kills . | . . . . . . . Allies Corrupted . | . . . . . . . Allies Melted . | . . . . . . . Intel | -11 -10 -10 -9 -9 -9 -8 ------- Run | Yrd Mat Min Mat Min Exi Min Active Infowar (turns) 687 | . 204 282 201 . . . Optics 687 | . 204 282 201 . . . Robot Analysis Total . | . . . . . . . Derelict Logs Recovered 2 | . . 1 . 1 . . Drone Launches 6 | . . . . 6 . . Drone Recoveries 3 | . . . . 3 . . Exploration | -11 -10 -10 -9 -9 -9 -8 ------------- Run | Yrd Mat Min Mat Min Exi Min Turns Passed 1502 | 73 359 282 448 162 10 168 Spaces Moved 1013 | 51 201 177 231 250 30 73 Core 7 | 7 . . . . . . Treads 383 | . 108 177 98 . . . Legs 137 | 44 93 . . . . . Wheels . | . . . . . . . Hover 1 | . . . 1 . . . Flight 485 | . . . 132 250 30 73 Fastest Speed 31 | 50 120 160 37 31 34 34 Average Speed 98 | 110 141 160 109 33 34 39 Slowest Speed 200 | 120 160 160 200 54 34 200 Overloaded Moves . | . . . . . . . Propulsion Burnouts . | . . . . . . . Robots Hopped 1 | . . . . . . 1 Potential Cave-ins . | . . . . . . . Cave-ins Triggered . | . . . . . . . Exploration Rate (%) 32 | 3 37 39 22 99 8 18 Regions Visited 6 Branch Regions 4 Pre-discovered Areas 1 | . . 1 . . . . Known Exits Taken . | . . . . . . . Unknown Exits Taken 6 | 1 1 1 1 1 1 . Scrap Searched 2 | . . . . 2 . . Spaces Dug . | . . . . . . . Terrain Destroyed 106 | . 12 . 75 . . 19 Melee . | . . . . . . . Projectile 1 | . . . . . . 1 AOE 105 | . 12 . 75 . . 18 Terrain Rammed . | . . . . . . . Walls Destroyed . | . . . . . . . Machines Disabled . | . . . . . . . Actions | -11 -10 -10 -9 -9 -9 -8 --------- Run | Yrd Mat Min Mat Min Exi Min Total 1336 | 67 244 176 344 311 29 165 Wait 71 | . . . . 30 . 41 Move 1005 | 50 200 176 230 249 29 71 Hop 1 | . . . . . . 1 Pick Up 43 | 11 6 . 15 6 . 5 Fast Attach 14 | 1 1 . 11 1 . . Attach 22 | 5 1 . 7 1 . 8 Detach . | . . . . . . . Swap 32 | . 10 . 11 4 . 7 Drop 47 | . 9 . 23 10 . 5 Fire 101 | . 17 . 47 10 . 27 Melee . | . . . . . . . Ram . | . . . . . . . Kick . | . . . . . . . Crush . | . . . . . . . Escape Stasis . | . . . . . . . Rewire . | . . . . . . . Trap . | . . . . . . . Miscellaneous . | . . . . . . . Route ------- -11/Scrapyard -10/Materials (discovered 2 exits: [*Min x2]) -10/Mines -9/Materials -9/Mines (discovered 3 exits: [*Mat x2] / [*Exi]) -9/Exiles -8/Mines (discovered 1 exit: [*Mat]) History --------- Turn | Location | Event 3 | -11/Scrapyard | Discovered new exit (range 16) 74 | -11/Scrapyard | Entered Materials 274 | -10/Materials | Discovered new exit (range 7) 318 | -10/Materials | Build established: Mutant 366 | -10/Materials | Discovered new exit (range 7) 433 | -10/Materials | Entered Mines 435 | -10/Mines | Learned location of Mines (-8) 455 | -10/Mines | Met a Derelict bent on vengeance 697 | -10/Mines | Discovered new exit (range 11) 715 | -10/Mines | Entered Materials 715 | -9/Materials | Evolved 2 slots: Propulsion x2 1131 | -9/Materials | Discovered new exit (range 13) 1163 | -9/Materials | Entered Mines 1175 | -9/Mines | Assembled infested the area 1192 | -9/Mines | A weapon hastily lodged in a ceiling crevice suddenly fell to the ground 1213 | -9/Mines | Build established: Scavenger-Mutant 1223 | -9/Mines | Discovered new exit (range 13) 1229 | -9/Mines | Found the Drone Emporium 1231 | -9/Mines | Found Prototype Device 1232 | -9/Mines | Identified Thief Drone Bay 1293 | -9/Mines | YI-UF0 nonchalantly dropped a Grenade Launcher on the ground 1307 | -9/Mines | Discovered new exit (range 23) 1309 | -9/Mines | Discovered new exit (range 22) 1325 | -9/Mines | Entered Exiles 1331 | -9/Exiles | Discovered new exit (range 14) 1335 | -9/Exiles | Entered Mines 1378 | -8/Mines | Discovered new exit (range 10) 1466 | -8/Mines | Core integrity fell below 50% 1491 | -8/Mines | Core integrity fell below 20% 1503 | -8/Mines | Destroyed by S-10 Pest with Light Assault Rifle Last Messages --------------- 01483_ Grenade Launcher destroyed. 01485_ U-05 Engineer lays Concrete. 01485_ Battle Cannon destroyed. 01485_ Flight Unit destroyed. 01487_ U-05 Engineer lays Concrete. 01488_ Lgt. Ion Engine destroyed. 01488_ U-05 Engineer lays Concrete. 01488_ Shotgun destroyed. 01489_ U-05 Engineer builds a Wall. 01489_ S-10 Pest destroyed. 01494_ U-05 Engineer lays Concrete. 01495_ L-31 Rogue destroyed. 01496_ U-05 Engineer lays Concrete. 01497_ Acquired 38 matter. 01497_ U-05 Engineer lays Concrete. 01498_ 6DAEEYLAI9,P 01500_ Acquired Core Shielding. 01501_ U-05 Engineer lays Concrete. Map ----- +----------------------------------------------------+ | | | | | | | | | ?????????????????????????????????????????????????? | | ?????????????????????????????????????????????????? | | ??????????????????????????????????? ???????????? | | ??????????????????????????????????? #?????????? | | ??????????????????????????????????? #?????????? | | ??????????????????????????????????? #?????????? | | ?????????????????????????????????## #?????????? | | ????????????????????????????????## ??????????? | | ????????????????????????????????# ??????????? | | ????????????????????????????????# ##?????????? | | ???????????????????????????????? ??????????? | | ????????????????????????????????? ???????????? | | ????????????????????????????????? ##??????????? | | ?????????????????????????????????# #??????????? | | ?????????????????????????????????# ##?????????? | | ??????????? ####???????????????## ##????????? | | ??????????? ???????######## #????????? | | ?????????? ?????# #????????? | | ??????????# ????# ####### ##????????? | | ????????????# ##?# #?????# ###?????????? | | ?????????????# ## #?????# ##???????????# | | ????????????# @!#?????# ###????????? # | | ????????????# %s u / #?????# = #?????#?? # | | ???????????# s % #####?######## #???? ## | | ????????? # ???###%" ##?# #????< # | | ?????????? s[ ####??##=%"= ###[#???= #? | | ??????????? %% ???????# = ##?[% #?? | | ??????????? s = ##????????# ## #???? | | ??????????? ???????????# ## #???????? | | ???????????? ?????????????# ###### #???????? | | ??????????????????????????###????# #???????? | | ?????????????????????????????????## ##???????? | | ??????????????????????????????????## "#????????? | | ???????????????????????????????????# ####????????? | | ???????????????????????????????????# #???????????? | | ???????????????????????????????????# #???????????? | | ???????????????????????????????????# #???????????? | | ???????????????????????????????????# ???????????? | | ???????????????????????????????????# ???????????? | | ???????????????????????????????????# ???????????? | | ??????????????????????????????????? ???????????? | | ???????????????????????????????????## ???????????? | | ?????????????????????????????????????# ??????????? | | ??????????????????????????????????????#??????????? | | ?????????????????????????????????????????????????? | | ?????????????????????????????????????????????????? | +----------------------------------------------------+ Best States ------------- Heat Dissipation 38 Energy Generation 12 Energy Capacity 265 Matter Stores 300 Matter Capacity 300 Sight Range 18 Terrain Scan Density 10 Additional Mass Support 6 Armor Coverage 150 Evasion (%) 63 Targeting Accuracy 5 Recoil Reduction 2 Item Schematics ----------------- None Robot Schematics ------------------ None Fabricated ------------ Nothing Repaired ---------- Nothing Studied --------- None Alien Tech Used ----------------- None Achievements -------------- None Challenges ------------ None Game ------ Seed ArmorVisualMallet Manual? 0 Play Time 00:32:24 Cumulative 17.7 hours Start 2026.07.01 @ 20:25:43 End 2026.07.01 @ 20:58:42 Sessions 1 Manual Loads 0 Difficulty Rogue Special Mode None Game No. 24 Rogue 24 Adventurer 0 Explorer 0 Win Type - Total 0 Types 0/0/0/0/0/0/0/0/0/0 Lore% 9 Gallery% 16 Achievement% 15 Wizard Run 0 Options --------- Layout 1 ASCII 0 Keyboard 0 Movement Mouse Keybinds 0 Fullscreen 1 Font 24/Smallcaps Map View 50x35 Zoom Use 0% Tactical HUD 1 Map Filters NONE Filters NONE Steam 1 RUN: 308e8447-2d5c-4ed5-9a81-243eb1eae3a9